bitfinex-derivatives/quotes_SOLF0:USTF0_20250111
["timestamp","ask_amount","ask_price","bid_price","bid_amount"]
[1736557765962,7.02602806,187.76,187.7,7.02602806]
[1736557767174,2.6639,187.72,187.7,7.02602806]
[1736557768471,2.6637,187.74,187.7,9.69022806]
[1736557768705,6.54780553,187.81,187.72,7.02602806]
[1736557768864,13.57383359,187.81,187.75,7.02602806]
[1736557769066,2.6632,187.78,187.75,7.02602806]
[1736557769473,7.02602806,187.81,187.75,7.02602806]
[1736557769669,2.6632,187.77,187.75,7.02602806]
[1736557775173,2.6628,187.8,187.76,2.6633]
[1736557775374,3.2791,187.82,187.78,7.02602806]
[1736557775676,7.02602806,187.85,187.78,7.02602806]
[1736557776971,2.6627,187.81,187.78,7.02602806]
[1736557777176,3.106,187.86,187.8,7.02602806]
[1736557777480,2.6626,187.82,187.8,7.02602806]
[1736557777681,3.106,187.86,187.8,7.02602806]
[1736557780175,2.6624,187.83,187.8,7.02602806]
[1736557784279,2.6624,187.83,187.82,7.02602806]
[1736557784483,2.6619,187.87,187.82,7.02602806]
[1736557784829,90.14602806,187.9,187.84,7.02602806]
[1736557785578,2.662,187.85,187.84,7.02602806]
[1736557785979,10.24242806,187.91,187.84,7.02602806]
[1736557787081,2.6619,187.86,187.84,7.02602806]
[1736557789288,10.24242806,187.91,187.84,7.02602806]
[1736557789493,2.662,187.85,187.84,7.02602806]
[1736557791503,3.2164,187.91,187.84,7.02602806]
[1736557791707,3.2164,187.91,187.88,7.02602806]
[1736557792091,6.10319509,187.92,187.9,7.02602806]
[1736557792504,3.0858,187.97,187.9,7.02602806]
[1736557792694,2.6609,187.94,187.92,7.02602806]
[1736557793507,2.6609,187.93,187.92,7.02602806]
[1736557796101,3.0858,187.97,187.92,7.02602806]
[1736557796701,2.6607,187.95,187.92,7.02602806]
[1736557798210,10.11182806,187.97,187.87,5.42]
[1736557798405,2.6611,187.92,187.9,7.02602806]
[1736557798805,2.6606,187.95,187.9,9.68722806]
[1736557798999,2.6606,187.95,187.92,7.02602806]
[1736557800906,2.6608,187.94,187.92,7.02602806]
[1736557802106,2.6604,187.97,187.93,2.6608]
[1736557802307,2.6604,187.97,187.95,7.02602806]
[1736557802902,83.1,188.0,187.95,7.02602806]
[1736557803103,2.6602,187.98,187.95,7.02602806]
[1736557803705,7.02602806,187.98,187.93,7.02602806]
[1736557804004,7.02602806,187.98,187.92,7.02602806]
[1736557804204,2.6611,187.92,187.9,7.02602806]
[1736557804605,7.02602806,187.96,187.9,7.02602806]
[1736557804809,7.02602806,187.94,187.82,5.42]
[1736557805008,7.02602806,187.9,187.8,1.5373]
[1736557805206,2.6621,187.85,187.82,7.02602806]
[1736557806047,2.6621,187.85,187.84,7.02602806]
[1736557807311,2.6621,187.85,187.81,13.68743105]
[1736557807507,2.6621,187.85,187.81,11.02483105]
[1736557808109,2.6622,187.84,187.81,11.02483105]
[1736557808510,11.02483105,187.9,187.67,7.29319697]
[1736557808717,2.6626,187.81,187.76,13.68813105]
[1736557809313,2.6622,187.84,187.79,13.68763105]
[1736557810016,4.919,187.89,187.79,13.68763105]
[1736557810017,2.6624,187.83,187.79,13.68763105]
[1736557810515,2.6624,187.83,187.79,11.02483105]
[1736557811112,4.919,187.89,187.76,11.02483105]
[1736557811707,2.6628,187.8,187.76,11.02483105]
[1736557812917,4.919,187.89,187.76,11.02483105]
[1736557813214,11.02483105,187.87,187.76,11.02483105]
[1736557813815,2.6629,187.79,187.76,11.02483105]
[1736557816718,11.02483105,187.87,187.76,11.02483105]
[1736557816915,2.6631,187.78,187.76,11.02483105]
[1736557817613,2.6629,187.8,187.76,11.02483105]
[1736557818211,2.6629,187.79,187.76,11.02483105]
[1736557821521,11.02483105,187.87,187.76,11.02483105]
[1736557821721,2.6631,187.78,187.76,11.02483105]
[1736557822638,11.02483105,187.87,187.76,11.02483105]
[1736557822921,11.02483105,187.87,187.73,11.02483105]
[1736557823518,2.6624,187.83,187.73,11.02483105]
[1736557823719,4.7632,187.82,187.73,11.02483105]
[1736557825019,2.6635,187.75,187.73,11.02483105]
[1736557828517,4.7632,187.82,187.7,11.02483105]
[1736557829524,7.06364723,187.8,187.73,7.06364723]
[1736557831324,2.6636,187.74,187.73,7.06364723]
[1736557833429,2.6641,187.71,187.67,2.6646]
[1736557833627,2.6641,187.71,187.7,7.06364723]
[1736557834523,2.6639,187.73,187.7,7.06364723]
[1736557834824,7.06364723,187.8,187.72,7.06364723]
[1736557835029,7.06364723,187.8,187.74,7.06364723]
[1736557835322,2.6635,187.75,187.74,7.06364723]
[1736557841227,7.06364723,187.8,187.7,2.6641]
[1736557841432,7.06364723,187.8,187.73,7.06364723]
[1736557842533,2.6636,187.74,187.73,7.06364723]
[1736557843636,2.6631,187.78,187.73,7.06364723]
[1736557843834,151.1335603,187.87,187.78,7.06364723]
[1736557844134,144.06991307,187.87,187.81,7.06364723]
[1736557844338,4.9826,187.88,187.81,7.06364723]
[1736557844835,7.06364723,187.85,187.78,7.06364723]
[1736557845031,7.06364723,187.85,187.63,29.1727879]
[1736557845032,7.06364723,187.83,187.71,5.42]
[1736557845339,2.663,187.78,187.77,7.06364723]
[1736557846530,7.06364723,187.81,187.71,5.42]
[1736557846733,2.6636,187.74,187.71,5.42]
[1736557846936,2.6636,187.74,187.73,7.06364723]
[1736557848229,9.72604723,187.83,187.73,7.06364723]
[1736557848538,6.51184407,187.87,187.79,7.06364723]
[1736557848539,7.06364723,187.85,187.79,7.06364723]
[1736557849030,2.6628,187.8,187.79,7.06364723]
[1736557853640,7.06364723,187.85,187.77,7.06364723]
[1736557853835,2.663,187.78,187.77,7.06364723]
[1736557858143,2.6633,187.76,187.75,7.06364723]
[1736557858448,7.06364723,187.79,187.73,7.06364723]
[1736557859141,2.6636,187.74,187.73,7.06364723]
[1736557860852,7.06364723,187.79,187.71,7.06364723]
[1736557861151,2.6639,187.72,187.71,7.06364723]
[1736557869060,3.1884,187.8,187.71,7.06364723]
[1736557869254,3.1884,187.8,187.76,7.06364723]
[1736557869451,2.6632,187.78,187.76,7.06364723]
[1736557869651,3.1884,187.8,187.76,7.06364723]
[1736557870958,2.6632,187.77,187.76,7.06364723]
[1736557873056,2.6636,187.75,187.74,7.06364723]
[1736557873756,3.1884,187.8,187.74,7.06364723]
[1736557873963,7.06364723,187.83,187.76,7.06364723]
[1736557874166,1.518,187.84,187.76,7.06364723]
[1736557874354,2.6626,187.81,187.8,7.06364723]
[1736557875464,2.6629,187.79,187.78,7.06364723]
[1736557877763,2.6632,187.77,187.76,7.06364723]
[1736557878167,7.06364723,187.78,187.66,5.42]
[1736557878369,2.664,187.72,187.71,7.06364723]
[1736557878669,7.06364723,187.78,187.71,7.06364723]
[1736557878869,7.06364723,187.78,187.73,7.06364723]
[1736557880060,2.6636,187.74,187.73,7.06364723]
[1736557880461,7.06364723,187.8,187.73,7.06364723]
[1736557881064,2.6636,187.74,187.73,7.06364723]
[1736557881299,2.6636,187.74,187.7,11.03802771]
[1736557881673,2.6639,187.73,187.7,11.03802771]
[1736557884166,1.6209,187.81,187.7,11.03802771]
[1736557884372,2.6635,187.75,187.71,2.664]
[1736557884973,2.6636,187.74,187.71,2.664]
[1736557885271,1.6209,187.81,187.7,11.03802771]
[1736557886072,2.664,187.72,187.7,11.03802771]
[1736557889874,2.664,187.71,187.7,11.03802771]
[1736557895677,1.6209,187.81,187.7,11.03802771]
[1736557896378,2.6636,187.75,187.71,2.6639]
[1736557896875,2.6636,187.75,187.7,11.03802771]
[1736557897070,1.6209,187.81,187.72,2.6638]
[1736557897269,1.6209,187.81,187.67,5.42]
[1736557897270,6.54220078,187.84,187.76,11.03802771]
[1736557897671,2.6631,187.78,187.76,11.03802771]
[1736557898376,11.03802771,187.83,187.7,11.03802771]
[1736557898967,11.03802771,187.83,187.7,13.70222771]
[1736557899367,11.03802771,187.83,187.7,11.03802771]
[1736557899568,2.6638,187.73,187.7,11.03802771]
[1736557902079,2.6642,187.7,187.65,39.66779156]
[1736557902275,2.6642,187.7,187.66,13.70272771]
[1736557902478,4.8703,187.79,187.66,11.03802771]
[1736557902678,2.6635,187.76,187.66,11.03802771]
[1736557902882,4.8703,187.79,187.66,11.03802771]
[1736557903279,2.664,187.72,187.71,7.06586568]
[1736557905280,7.06586568,187.77,187.69,7.06586568]
[1736557905505,7.06586568,187.75,187.63,2.6651]
[1736557905677,7.06586568,187.73,187.67,7.06586568]
[1736557906275,7.06586568,187.75,187.67,7.06586568]
[1736557906479,2.6644,187.69,187.61,1.6641]
[1736557906676,2.6644,187.69,187.62,5.42]
[1736557906985,2.6644,187.69,187.68,7.06586568]
[1736557911188,4.8703,187.79,187.68,7.06586568]
[1736557911389,7.06586568,187.77,187.71,7.06586568]
[1736557912181,2.6639,187.72,187.71,7.06586568]
[1736557912778,2.6643,187.7,187.69,7.06586568]
[1736557918797,4.8703,187.79,187.69,7.06586568]
[1736557918994,4.8703,187.79,187.75,7.06586568]
[1736557919288,2.663,187.78,187.77,7.06586568]
[1736557922388,7.06586568,187.82,187.75,7.06586568]
[1736557922594,2.6633,187.76,187.75,7.06586568]
[1736557923193,2.6632,187.77,187.75,7.06586568]
[1736557923393,7.06586568,187.82,187.75,7.06586568]
[1736557923595,2.6633,187.76,187.75,7.06586568]
[1736557927400,2.6636,187.74,187.73,7.06586568]
[1736557929999,7.06586568,187.78,187.71,12.48586568]
[1736557930200,2.6639,187.72,187.71,7.06586568]
[1736557930794,7.06586568,187.76,187.65,5.42]
[1736557931000,7.06586568,187.76,187.69,7.06586568]
[1736557931196,7.06586568,187.74,187.69,7.06586568]
[1736557931400,7.06586568,187.72,187.62,33.51032664]
[1736557931601,7.06586568,187.72,187.65,7.06586568]
[1736557933114,2.6647,187.66,187.65,7.06586568]
[1736557938420,2.6644,187.69,187.65,7.06586568]
[1736557938714,2.6644,187.69,187.67,7.06586568]
[1736557938912,7.06586568,187.74,187.67,7.06586568]
[1736557939111,2.6645,187.68,187.67,7.06586568]
[1736557941615,7.06586568,187.76,187.67,7.06586568]
[1736557941922,7.06586568,187.76,187.69,7.06586568]
[1736557943120,2.6643,187.7,187.69,7.06586568]
[1736557943318,7.06586568,187.76,187.69,7.06586568]
[1736557943511,4.8042,187.77,187.71,7.06586568]
[1736557943819,6.54656042,187.79,187.73,7.06586568]
[1736557943820,2.6637,187.74,187.73,7.06586568]
[1736557944123,7.06586568,187.78,187.71,7.06586568]
[1736557944419,2.6643,187.69,187.68,5.42]
[1736557944819,2.6646,187.67,187.62,8.0852]
[1736557946023,2.6646,187.67,187.63,2.6651]
[1736557946217,2.6646,187.67,187.66,7.06586568]
[1736557965133,2.6642,187.7,187.67,2.6646]
[1736557965428,6.53560691,187.77,187.69,7.06586568]
[1736557965629,6.53560691,187.77,187.72,7.06586568]
[1736557965833,2.6638,187.73,187.72,7.06586568]
[1736557966026,3.2279,187.79,187.72,7.06586568]
[1736557966231,3.2279,187.79,187.77,7.06586568]
[1736557966532,144.06991307,187.8,187.77,7.06586568]
[1736557966785,144.06991307,187.85,187.79,7.06586568]
[1736557966931,144.06991307,187.85,187.81,7.06586568]
[1736557967837,10.17246568,187.87,187.81,7.06586568]
[1736557969126,7.06586568,187.85,187.79,7.06586568]
[1736557969335,7.06586568,187.85,187.77,7.06586568]
[1736557969531,7.06586568,187.85,187.79,7.06586568]
[1736557969737,2.6628,187.8,187.79,7.06586568]
[1736557972928,12.50033194,187.86,187.79,7.06586568]
[1736557973130,5.43446626,187.86,187.83,7.06586568]
[1736557973432,3.1066,187.87,187.83,7.06586568]
[1736557974236,2.6619,187.86,187.83,7.06586568]
[1736557974533,3.1066,187.87,187.83,7.06586568]
[1736557975334,2.6622,187.85,187.83,7.06586568]
[1736557975733,3.1066,187.87,187.83,7.06586568]
[1736557976333,3.1066,187.87,187.78,5.42]
[1736557976528,7.06586568,187.86,187.8,7.06586568]
[1736557977133,2.6625,187.82,187.8,7.06586568]
[1736557977362,3.1066,187.87,187.8,7.06586568]
[1736557977634,3.1066,187.87,187.83,7.06586568]
[1736557978335,2.6622,187.85,187.83,7.06586568]
[1736557978931,2.6619,187.86,187.83,7.06586568]
[1736557979133,13.58599767,187.92,187.85,7.06586568]
[1736557979637,2.6619,187.86,187.85,7.06586568]
[1736557980136,4.8973,187.94,187.83,7.06586568]
[1736557980137,7.06586568,187.9,187.83,7.06586568]
[1736557980331,2.6623,187.84,187.83,7.06586568]
[1736557985870,7.06586568,187.92,187.83,7.06586568]
[1736557986029,18.46514936,187.94,187.86,7.06586568]
[1736557986241,18.46514936,187.94,187.88,7.06586568]
[1736557986430,2.6612,187.91,187.9,7.06586568]
[1736557988630,2.661,187.93,187.9,7.06586568]
[1736557988829,2.661,187.93,187.92,7.06586568]
[1736557989437,2.661,187.93,187.9,11.01528015]
[1736557989734,2.6603,187.98,187.92,2.6609]
[1736557989941,3.1998,188.03,187.93,11.01528015]
[1736557992234,2.6608,187.94,187.93,11.01528015]
[1736557995935,2.6604,187.97,187.93,13.67618015]
[1736557997143,2.6605,187.96,187.93,11.01528015]
[1736557999642,2.6605,187.96,187.92,2.661]
[1736557999643,11.01528015,188.02,187.9,11.01528015]
[1736558000149,2.6601,187.99,187.9,11.01528015]
[1736558000349,11.01528015,188.02,187.9,11.01528015]
[1736558001151,2.6612,187.92,187.9,11.01528015]
[1736558002547,2.6612,187.91,187.9,11.01528015]
[1736558006747,2.6611,187.92,187.9,11.01528015]
[1736558009661,2.6612,187.91,187.9,11.01528015]
[1736558009957,2.6612,187.91,187.87,13.67698015]
[1736558011280,2.6612,187.91,187.9,7.05110878]
[1736558015967,1.6143,187.98,187.9,7.05110878]
[1736558016262,1.6143,187.98,187.92,7.05110878]
[1736558016765,2.661,187.93,187.92,7.05110878]
[1736558022473,1.6143,187.98,187.86,5.42]
[1736558022474,2.6613,187.91,187.9,7.05110878]
[1736558023270,2.6619,187.86,187.79,4.7524]
[1736558023575,2.6619,187.86,187.85,7.05110878]
[1736558026578,2.6618,187.87,187.85,7.05110878]
[1736558026775,2.6618,187.87,187.86,7.05110878]
[1736558028076,7.05110878,187.95,187.86,7.05110878]
[1736558028276,7.05110878,187.95,187.89,7.05110878]
[1736558028477,3.1087,187.96,187.91,7.05110878]
[1736558028675,2.6611,187.92,187.91,7.05110878]
[1736558034677,3.1087,187.96,187.81,5.42]
[1736558034878,2.6612,187.91,187.87,2.6617]
[1736558036077,3.1087,187.96,187.87,2.6617]
[1736558036280,2.6611,187.92,187.87,2.6617]
[1736558037812,2.6611,187.92,187.91,7.05110878]
[1736558042985,2.6611,187.92,187.81,5.42]
[1736558043186,3.1087,187.96,187.9,7.05110878]
[1736558043187,2.6613,187.91,187.9,7.05110878]
[1736558044786,7.05110878,187.95,187.89,7.05110878]
[1736558046086,2.6615,187.9,187.89,7.05110878]
[1736558048882,7.05110878,187.93,187.83,5.42]
[1736558049090,7.05110878,187.93,187.86,7.05110878]
[1736558050188,2.6618,187.87,187.86,7.05110878]
[1736558052188,7.05110878,187.91,187.8,5.42]
[1736558052385,7.05110878,187.91,187.85,7.05110878]
[1736558052884,2.6619,187.86,187.85,7.05110878]
[1736558055684,9.6577358,187.96,187.85,7.05110878]
[1736558055890,16.70884458,187.96,187.89,7.05110878]
[1736558056089,16.70884458,187.96,187.91,7.05110878]
[1736558056293,9.6577358,187.96,187.91,7.05110878]
[1736558056792,2.6611,187.92,187.91,7.05110878]
[1736558059585,8.66540878,187.98,187.91,7.05110878]
[1736558059586,2.661,187.93,187.91,7.05110878]
[1736558059789,2.661,187.93,187.92,7.05110878]
[1736558060489,3.1705,188.0,187.92,7.05110878]
[1736558060693,8.69860878,188.04,187.97,7.05110878]
[1736558060992,6.54466406,188.03,187.93,2.6608]
[1736558061292,7.05110878,188.02,187.96,7.05110878]
[1736558061691,7.05110878,187.98,187.88,5.42]
[1736558061893,7.05110878,187.98,187.91,7.05110878]
[1736558062096,3.1441,187.97,187.86,5.42]
[1736558062292,3.1441,187.97,187.91,7.05110878]
[1736558062293,4.7389,187.97,187.91,7.05110878]
[1736558063223,2.6612,187.92,187.91,7.05110878]
[1736558063789,7.05110878,187.96,187.89,7.05110878]
[1736558063993,2.6614,187.9,187.89,7.05110878]
[1736558065335,2.6614,187.9,187.88,7.05110878]
[1736558065495,7.05110878,187.92,187.86,7.05110878]
[1736558066291,2.6617,187.88,187.86,7.05110878]
[1736558067594,7.05110878,187.94,187.86,7.05110878]
[1736558067794,2.6618,187.87,187.86,7.05110878]
[1736558073099,2.6621,187.85,187.84,7.05110878]
[1736558073496,7.05110878,187.92,187.84,7.05110878]
[1736558073716,7.05110878,187.92,187.86,7.05110878]
[1736558073998,2.6618,187.87,187.86,7.05110878]
[1736558074504,2.6617,187.88,187.86,7.05110878]
[1736558074701,2.6617,187.88,187.87,7.05110878]
[1736558075203,13.59577284,187.96,187.87,7.05110878]
[1736558075404,6.54466406,187.96,187.92,7.05110878]
[1736558075602,4.7389,187.97,187.92,7.05110878]
[1736558076497,144.06991307,188.04,187.94,7.05110878]
[1736558076701,6.54122812,188.01,187.96,7.05110878]
[1736558077106,7.05110878,188.02,187.96,7.05110878]
[1736558077708,2.6603,187.97,187.96,7.05110878]
[1736558079504,2.6606,187.95,187.94,7.05110878]
[1736558085205,2.6604,187.97,187.89,2.6614]
[1736558085407,7.05110878,188.0,187.92,7.05110878]
[1736558086107,2.6609,187.93,187.92,7.05110878]
[1736558087509,2.6612,187.91,187.9,7.05110878]
[1736558087705,7.05110878,187.94,187.81,4.7831]
[1736558087943,7.05110878,187.94,187.87,7.05110878]
[1736558088212,2.6616,187.88,187.87,7.05110878]
[1736558093517,2.6614,187.9,187.85,7.05110878]
[1736558093711,7.05110878,187.92,187.85,7.05110878]
[1736558094318,2.6619,187.87,187.85,7.05110878]
[1736558095120,2.6619,187.87,187.82,2.6625]
[1736558095321,2.6619,187.87,187.86,7.05110878]
[1736558104328,7.05110878,187.92,187.84,7.05110878]
[1736558104527,2.662,187.85,187.84,7.05110878]
[1736558104827,5.3219,187.93,187.77,2.6632]
[1736558105130,7.05110878,187.84,187.72,5.42]
[1736558105330,7.05110878,187.84,187.77,7.05110878]
[1736558105632,2.663,187.78,187.77,7.05110878]
[1736558106526,3.2193,187.84,187.77,7.05110878]
[1736558106730,3.2193,187.84,187.72,5.42]
[1736558106731,7.05110878,187.87,187.8,7.05110878]
[1736558107035,7.05110878,187.87,187.82,7.05110878]
[1736558107230,2.6623,187.83,187.82,7.05110878]
[1736558109332,3.2193,187.9,187.82,7.05110878]
[1736558109536,3.2193,187.9,187.87,7.05110878]
[1736558110182,2.6616,187.88,187.87,7.05110878]
[1736558112437,2.6615,187.89,187.87,7.05110878]
[1736558115039,2.6616,187.88,187.87,7.05110878]
[1736558119344,1.6147,187.94,187.87,7.05110878]
[1736558119550,2.6615,187.89,187.85,2.662]
[1736558120647,2.661,187.93,187.88,7.05110878]
[1736558120945,1.6147,187.94,187.81,4.7612]
[1736558120946,7.05110878,187.92,187.86,7.05110878]
[1736558121782,2.6622,187.85,187.84,7.05110878]
[1736558121944,7.05110878,187.87,187.75,8.6145]
[1736558122249,2.6623,187.84,187.79,7.05110878]
[1736558122546,7.05110878,187.87,187.81,7.05110878]
[1736558122739,7.05110878,187.92,187.85,7.05110878]
[1736558122943,151.12102185,187.92,187.85,7.05110878]
[1736558123342,2.6614,187.9,187.85,7.05110878]
[1736558123543,144.06991307,187.92,187.85,7.05110878]
[1736558123871,7.05110878,187.93,187.85,7.05110878]
[1736558124042,2.6617,187.88,187.87,7.05110878]
[1736558124248,7.05110878,187.93,187.87,7.05110878]
[1736558124442,1.6147,187.94,187.87,7.05110878]
[1736558125244,1.6147,187.94,187.85,11.02027523]
[1736558125741,2.6615,187.89,187.85,11.02027523]
[1736558125964,1.6147,187.94,187.85,11.02027523]
[1736558126650,1.6147,187.94,187.85,13.68217523]
[1736558127048,2.6614,187.9,187.85,13.68217523]
[1736558127352,1.6147,187.94,187.85,13.68217523]
[1736558129253,1.6147,187.94,187.85,11.02027523]
[1736558132045,2.6615,187.9,187.86,2.6619]
[1736558132955,2.6615,187.89,187.86,2.6619]
[1736558133557,1.6147,187.94,187.85,11.02027523]
[1736558133756,2.6619,187.86,187.85,11.02027523]
[1736558135450,20.74338993,187.96,187.85,13.68217523]
[1736558135451,2.6615,187.89,187.85,13.68217523]
[1736558137956,3.1969,187.96,187.85,13.68217523]
[1736558138155,2.6616,187.88,187.85,13.68217523]
[1736558144554,3.1129,187.96,187.85,11.02027523]
[1736558146253,2.6614,187.9,187.87,2.6618]
[1736558147055,3.1129,187.96,187.88,11.02027523]
[1736558147261,5.31942167,187.97,187.94,7.04842941]
[1736558148063,2.6607,187.95,187.94,7.04842941]
[1736558148757,54.02160262,188.0,187.94,7.04842941]
[1736558148965,227.12991307,188.04,187.98,7.04842941]
[1736558149265,227.12991307,188.04,188.0,7.04842941]
[1736558149266,2.6595,188.03,188.0,7.04842941]
[1736558149466,227.12991307,188.04,188.0,7.04842941]
[1736558149768,83.06,188.04,188.0,7.04842941]
[1736558150567,2.6594,188.04,188.02,7.04842941]
[1736558151059,3.2289,188.07,188.02,7.04842941]
[1736558151260,2.6593,188.05,188.02,7.04842941]
[1736558152360,2.6593,188.05,188.04,7.04842941]
[1736558153561,2.6595,188.03,188.02,7.04842941]
[1736558154458,2.6598,188.01,188.0,7.04842941]
[1736558154700,7.04842941,188.04,187.98,7.04842941]
[1736558154963,2.6601,187.99,187.92,2.661]
[1736558155158,7.04842941,188.02,187.95,7.04842941]
[1736558155770,2.6605,187.96,187.95,7.04842941]
[1736558155956,7.04842941,188.02,187.95,7.04842941]
[1736558156161,2.6603,187.98,187.97,7.04842941]
[1736558157369,2.6603,187.98,187.93,11.01096551]
[1736558157666,2.6604,187.97,187.93,11.01096551]
[1736558158774,11.01096551,188.05,187.9,5.4]
[1736558159066,9.73596475,188.07,187.85,3.2568]
[1736558159067,11.01096551,188.02,187.85,3.2568]
[1736558159265,1.5946,188.01,187.88,11.01096551]
[1736558161562,2.6612,187.91,187.88,11.01096551]
[1736558161762,11.01096551,187.96,187.85,11.01096551]
[1736558161966,3.1901,187.95,187.82,16.41096551]
[1736558162471,1.5136,187.94,187.82,16.41096551]
[1736558162667,2.6618,187.88,187.82,16.41096551]
[1736558162867,2.6618,187.88,187.82,19.07336551]
[1736558163370,2.6618,187.88,187.82,13.67336551]
[1736558164568,2.6618,187.88,187.83,2.6623]
[1736558165273,1.5136,187.94,187.83,2.6623]
[1736558165464,2.6618,187.87,187.83,2.6623]
[1736558166163,2.6616,187.89,187.85,11.01096551]
[1736558166371,3.1901,187.95,187.88,11.01096551]
[1736558166874,1.6549,187.95,187.88,11.01096551]
[1736558167277,2.6611,187.92,187.88,11.01096551]
[1736558169592,2.6612,187.91,187.88,11.01096551]
[1736558169780,1.5134,187.99,187.88,11.01096551]
[1736558170984,2.6613,187.9,187.88,11.01096551]
[1736558172077,2.6615,187.89,187.88,11.01096551]
[1736558173084,2.661,187.93,187.88,13.67246551]
[1736558173384,1.5134,187.99,187.91,11.01096551]
[1736558173886,2.6608,187.95,187.91,11.01096551]
[1736558175887,2.6608,187.94,187.91,11.01096551]
[1736558176679,1.5134,187.99,187.91,13.67216551]
[1736558176882,2.6607,187.95,187.91,13.67216551]
[1736558177282,2.6607,187.95,187.94,11.01096551]
[1736558177585,2.6603,187.98,187.94,11.01096551]
[1736558177785,1.5664,188.01,187.94,11.01096551]
[1736558178985,1.5208,188.04,187.94,11.01096551]
[1736558179291,2.6604,187.97,187.94,11.01096551]
[1736558180382,1.5208,188.04,187.94,11.01096551]
[1736558180587,1.6353,188.05,187.97,11.01096551]
[1736558180786,1.6353,188.05,187.97,13.67116551]
[1736558180986,2.6597,188.02,187.97,11.01096551]
[1736558181686,2.6597,188.02,187.98,2.6602]
[1736558184290,2.6598,188.01,187.98,2.6602]
[1736558184489,1.6353,188.05,187.97,11.01096551]
[1736558184789,1.6353,188.05,187.99,2.6601]
[1736558185515,2.6596,188.03,187.99,2.6601]
[1736558186883,2.6596,188.03,188.0,2.6599]
[1736558187189,2.6596,188.03,188.0,13.67086551]
[1736558187886,83.04,188.07,187.94,13.67176551]
[1736558188088,83.04,188.07,187.94,11.01096551]
[1736558188488,2.6606,187.95,187.94,11.01096551]
[1736558189795,11.01096551,188.01,187.85,1.5846]
[1736558189997,11.01096551,188.01,187.89,11.01096551]
[1736558190494,2.6613,187.9,187.86,16.41096551]
[1736558190792,16.33796551,188.01,187.83,11.01096551]
[1736558190989,11.01096551,187.95,187.83,11.01096551]
[1736558191192,4.7664,187.94,187.83,11.01096551]
[1736558191691,2.6612,187.91,187.83,11.01096551]
[1736558191937,4.7664,187.94,187.83,11.01096551]
[1736558193989,4.7664,187.94,187.8,11.01096551]
[1736558193990,11.01096551,187.92,187.8,11.01096551]
[1736558194188,2.6624,187.83,187.8,11.01096551]
[1736558194597,11.01096551,187.92,187.8,11.01096551]
[1736558194896,4.7664,187.94,187.83,11.01096551]
[1736558195489,2.6621,187.85,187.83,11.01096551]
[1736558196289,2.6621,187.85,187.8,11.01096551]
[1736558196489,2.6616,187.89,187.8,11.01096551]
[1736558196687,11.01096551,187.92,187.8,11.01096551]
[1736558196986,11.01096551,187.92,187.78,7.5297]
[1736558197191,11.01096551,187.89,187.76,11.01096551]
[1736558198397,2.6629,187.8,187.76,11.01096551]
[1736558198799,11.01096551,187.89,187.76,11.01096551]
[1736558199000,2.6631,187.78,187.76,11.01096551]
[1736558199194,11.01096551,187.89,187.76,11.01096551]
[1736558199389,2.6628,187.8,187.76,11.01096551]
[1736558201792,2.6626,187.82,187.76,13.67426551]
[1736558201994,2.6626,187.82,187.79,11.01096551]
[1736558202195,11.01096551,187.89,187.79,11.01096551]
[1736558202397,2.6623,187.84,187.79,11.01096551]
[1736558202990,2.6619,187.86,187.79,11.01096551]
[1736558203197,11.01096551,187.89,187.79,11.01096551]
[1736558203394,11.01096551,187.92,187.79,11.01096551]
[1736558203689,2.6623,187.84,187.79,11.01096551]
[1736558204295,16.33796551,187.92,187.79,11.01096551]
[1736558204498,2.6624,187.83,187.79,11.01096551]
[1736558204697,16.33796551,187.92,187.79,11.01096551]
[1736558205099,2.6626,187.82,187.79,11.01096551]
[1736558205295,16.33796551,187.92,187.79,11.01096551]
[1736558206598,2.6626,187.82,187.79,11.01096551]
[1736558207400,11.01096551,187.89,187.76,11.01096551]
[1736558208305,2.6628,187.8,187.76,11.01096551]
[1736558210198,2.6632,187.77,187.76,11.01096551]
[1736558210401,11.01096551,187.89,187.76,11.01096551]
[1736558212103,2.663,187.79,187.76,11.01096551]
[1736558212906,11.01096551,187.89,187.76,11.01096551]
[1736558213207,2.6628,187.81,187.76,13.67426551]
[1736558213407,11.01096551,187.89,187.76,13.67426551]
[1736558214508,11.01096551,187.89,187.76,11.01096551]
[1736558214909,2.6631,187.78,187.76,11.01096551]
[1736558215711,11.01096551,187.89,187.76,13.67426551]